fUST/lending_fUST_20240125
["ID","MTS","AMOUNT","RATE_DAILY","PERIOD"]
[312628034,1706117439869,-150.35541223,0.000378,30]
[312628035,1706117439878,-158.267399,0.00037808,2]
[312628036,1706117439887,-12260.48652932,0.00037923,5]
[312628037,1706117439896,-213.026402,0.00037965,2]
[312628038,1706117439905,-20659.87739736,0.00038,10]
[312628039,1706117439915,-1000.0,0.00038262,10]
[312628040,1706117439924,-500.0,0.000384,7]
[312628041,1706117439933,-746.00771525,0.000385,4]
[312628042,1706117439942,-200.0,0.000386,4]
[312628043,1706117439951,-4803.36630422,0.00038612,4]
[312628047,1706117440934,-4048.92,0.0002999,3]
[312628048,1706117440943,-10.58761786,0.00038612,4]
[312628049,1706117440952,-903.63325516,0.00038612,4]
[312628050,1706117440962,-211.53795191,0.00038612,4]
[312628051,1706117440972,-151.0,0.00038612,2]
[312628052,1706117440981,-151.0,0.00038612,2]
[312628053,1706117440991,-291.774978,0.00038612,2]
[312628055,1706117441000,-291.774978,0.00038612,2]
[312628056,1706117441010,-1860.58994417,0.00038612,2]
[312628058,1706117441124,-5139.41008083,0.00038612,2]
[312628059,1706117441133,-7000.000025,0.00038612,2]
[312628060,1706117441142,-741.163582,0.00038612,2]
[312628061,1706117441152,-741.163582,0.00038612,2]
[312628062,1706117441160,-151.0,0.00038614,2]
[312628063,1706117441170,-151.0,0.00038614,2]
[312628064,1706117441179,-20055.10798256,0.00038614,2]
[312628065,1706117441188,-213.026402,0.00038747,2]
[312628066,1706117441197,-151.0,0.00038879,4]
[312628067,1706117441206,-162.536673,0.00038904,2]
[312628068,1706117441216,-158.267399,0.00038904,2]
[312628069,1706117441226,-3000.0,0.00039,7]
[312628070,1706117441235,-1014.59007252,0.00039112,3]
[312628071,1706117441244,-500.0,0.000394,7]
[312628072,1706117441254,-500.0,0.00039513,5]
[312628073,1706117441263,-213.026402,0.0003953,2]
[312628075,1706117441273,-151.0,0.0003976,4]
[312628077,1706117441282,-160.47462335,0.00039799,30]
[312628078,1706117441291,-3095.26652201,0.000398,10]
[312628193,1706117446270,-0.65910539,0.00029989,2]
[312628222,1706117476017,243.5785229,0.00016,5]
[312628223,1706117496157,155.0,0.00017308,2]
[312628224,1706117498954,154.98450155,0.00017308,2]
[312628225,1706117499300,154.98450155,0.00017308,2]
[312628226,1706117501266,212.09151868,0.00016,2]
[312628262,1706117952774,5000.0,0.00021905,5]
[312628264,1706117966772,4928.23961202,0.00021247,5]
[312628288,1706118090076,12998.87396649,0.00016,5]
[312628289,1706118162483,-526.86671642,0.0002016,2]
[312628290,1706118162508,-24809.13328358,0.00020161,2]
[312628291,1706118163048,200.0,0.00022176,7]
[312628292,1706118194473,154.86062544,0.00020157,4]
[312628293,1706118214473,154.86062544,0.0001814,3]
[312628294,1706118234314,-323.23544643,0.00020145,2]
[312628295,1706118234336,-20906.59632435,0.00020145,2]
[312628296,1706118234358,-3746.91160772,0.00020145,2]
[312628297,1706118234379,-4815.22334348,0.00020146,2]
[312628298,1706118234400,-6481.78,0.00020147,3]
[312628299,1706118234420,-154.86062544,0.00020148,2]
[312628300,1706118234442,-452.88221546,0.00020148,2]
[312628301,1706118234463,-243.19997644,0.00020149,2]
[312628302,1706118234484,-1198.3823456,0.00020149,2]
[312628303,1706118234504,-154.86062544,0.00020149,2]
[312628304,1706118234525,-644.5849569,0.00020149,2]
[312628305,1706118234545,-260.95376915,0.00020156,2]
[312628306,1706118234565,-154.86062544,0.00020156,2]
[312628307,1706118234584,-1325.66813815,0.00020156,2]
[312628308,1706118259969,561.94740955,0.00020142,5]
[312628309,1706118382587,154.86062544,0.00018111,3]
[312628310,1706118441163,-155.0,0.00019178,2]
[312628311,1706118456487,154.86062544,0.00018093,3]
[312628312,1706118462951,200.0,0.00022112,7]
[312628313,1706118522510,154.86062544,0.00017256,3]
[312628315,1706118566295,3000.0,0.00018169,2]
[312628316,1706118606715,855.527996,0.00018165,2]
[312628317,1706118614329,-323.68259118,0.00019159,2]
[312628318,1706118614352,-680.27751696,0.00019159,2]
[312628319,1706118614373,-938.03984623,0.0001916,2]
[312628320,1706118614395,-7962.34091115,0.0001916,2]
[312628321,1706118614418,-5095.65913448,0.0001916,2]
[312628376,1706118633399,-175.26340057,0.00019157,2]
[312628377,1706118633408,-680.10116762,0.00019157,2]
[312628378,1706118633417,-323.49962696,0.00019157,2]
[312628379,1706118633427,-243.19997644,0.00019158,2]
[312628380,1706118633435,-938.03984623,0.00019158,2]
[312628381,1706118633445,-1741.4785695,0.00019158,2]
[312628382,1706118633454,-7958.02659023,0.00019158,2]
[312628383,1706118633463,-20879.12353862,0.00019159,2]
[312628384,1706118633472,-15810.93718987,0.0001916,2]
[312628385,1706118633482,-154.86062544,0.00019161,2]
[312628386,1706118633491,-302.00997705,0.00019161,2]
[312628387,1706118633500,-2035.08647523,0.00019161,2]
[312628388,1706118633510,-81222.81038163,0.00019161,2]
[312628389,1706118633519,-8764.16069463,0.00019162,2]
[312628390,1706118633528,-19871.73595374,0.00019162,2]
[312628391,1706118633538,-7975.1579288,0.00019163,2]
[312628392,1706118633549,-2871.84108916,0.00019163,2]
[312628393,1706118633560,-1162.32804307,0.00019163,2]
[312628439,1706118638577,-154.86062544,0.00019156,2]
[312628441,1706118638587,-137.2900064,0.00019156,2]
[312628447,1706118638635,-451.2186614,0.00019156,2]
[312628449,1706118638644,-6899.89695889,0.00019163,2]
[312628451,1706118638653,-2074.57916651,0.00019164,2]
[312628453,1706118638663,-561.77353058,0.00019165,2]
[312628455,1706118638672,-2104.07287401,0.00019165,2]
[312628457,1706118638681,-470.80732048,0.00019165,2]
[312628459,1706118638690,-7.851655,0.00019178,2]
[312628461,1706118638699,-156.02710907,0.00020115,2]
[312628463,1706118638708,-4104.72771243,0.00020142,2]
[312628465,1706118638717,-178.98109975,0.00020145,2]
[312628467,1706118638726,-312.23902022,0.00020146,2]
[312628470,1706118638735,-357.48381257,0.00020154,2]
[312628473,1706118638744,-452.92122978,0.00020155,2]
[312628475,1706118638753,-322.79218266,0.00020155,2]
[312628477,1706118638762,-15224.22613047,0.00020155,2]
[312628479,1706118638771,-4564.29504994,0.00020155,2]
[312628481,1706118638781,-155.12387611,0.00020155,2]
[312628483,1706118638790,-3745.19959052,0.00020155,2]
[312628485,1706118638800,-265.548392,0.00020155,2]
[312628487,1706118638809,-154.86062544,0.00020155,2]
[312628489,1706118638819,-1197.57010962,0.00020155,2]
[312628491,1706118638829,-155.10837766,0.00020155,2]
[312628493,1706118638838,-154.87609912,0.00020155,2]
[312628495,1706118638848,-818.67757888,0.00020155,2]
[312628497,1706118638857,-261.19714491,0.00020159,2]
[312628499,1706118638866,-524.08518411,0.00020159,2]
[312628501,1706118638876,-1293.76681809,0.00021477,2]
[312628503,1706118638885,-164.051894,0.00021482,2]
[312628505,1706118638894,-1439.19025016,0.00021904,2]
[312628507,1706118638903,-166.666666,0.00021918,2]
[312628509,1706118638912,-3969.42099078,0.00022,2]
[312628511,1706118638922,-151.616038,0.00022068,2]
[312628513,1706118638931,-154.86062544,0.00022112,2]
[312628515,1706118638940,-303.54757009,0.00022112,2]
[312628517,1706118638951,-173.9851654,0.00022147,2]
[312628519,1706118638960,-166.666666,0.00022431,2]
[312628521,1706118638969,-166.666666,0.00022944,2]
[312628523,1706118638979,-1415.66703516,0.00023,2]
[312628525,1706118638989,-595.6499626,0.0002337,2]
[312628527,1706118638999,-2442.33662247,0.0002337,5]
[312628529,1706118639009,-164.11753871,0.0002338,2]
[312628531,1706118639019,-155.2836638,0.0002338,2]
[312628533,1706118639029,-156.48834154,0.00023383,2]
[312628535,1706118639038,-161.0864151,0.00023383,2]
[312628537,1706118639047,-224.37293428,0.00023383,2]
[312628539,1706118639056,-155.15114735,0.00023383,2]
[312628541,1706118639065,-154.90647651,0.00023383,2]
[312628543,1706118639074,-158.00228201,0.00023383,2]
[312628545,1706118639085,-1784.47114126,0.00023383,2]
[312628547,1706118639095,-155.25728071,0.00023383,2]
[312628549,1706118639105,-174.89496328,0.00023383,2]
[312628551,1706118639114,-176.36856282,0.00023383,2]
[312628553,1706118639123,-161.09242921,0.00023383,2]
[312628555,1706118639132,-282.74870736,0.00023383,2]
[312628557,1706118639141,-200.0,0.00023383,2]
[312628559,1706118639150,-154.98450155,0.00023383,2]
[312628561,1706118639159,-156.36564515,0.00023383,2]
[312628563,1706118639169,-298.47533582,0.00023383,2]
[312628565,1706118639179,-200.84855603,0.00023383,2]
[312628567,1706118639188,-309.5529275,0.00023383,2]
[312628569,1706118639197,-259.90877522,0.00023383,2]
[312628571,1706118639206,-156.06983439,0.00023383,2]
[312628573,1706118639215,-193.60117205,0.00023383,2]
[312628575,1706118639225,-158.32114793,0.00023383,2]
[312628577,1706118639233,-216.03165297,0.00023383,2]
[312628579,1706118639242,-203.88667215,0.00023383,2]
[312628581,1706118639252,-155.0,0.00023383,2]
[312628583,1706118639260,-2045.80640197,0.00023383,2]
[312628585,1706118639269,-251.22888864,0.00023383,2]
[312628587,1706118639279,-302.89701512,0.00023383,2]
[312628589,1706118639289,-309.68232496,0.00023383,2]
[312628591,1706118639298,-155.76848449,0.00023383,2]
[312628593,1706118639307,-158.98793895,0.00023383,2]
[312628595,1706118639316,-155.19934607,0.00023383,2]
[312628597,1706118639326,-258.92384396,0.00023383,2]
[312628599,1706118639335,-11033.00619666,0.00023383,2]
[312628601,1706118639344,-302.3366559,0.00023383,2]
[312628603,1706118639353,-17969.87617191,0.00023393,2]
[312628605,1706118639362,-653.82444896,0.00023393,2]
[312628607,1706118639371,-7396.21225211,0.00023393,2]
[312628609,1706118639380,-166.666666,0.00023456,2]
[312628611,1706118639389,-166.666666,0.00023969,2]
[312628613,1706118639399,-280.0,0.00024323,7]
[312628615,1706118639407,-166.666666,0.00024482,2]
[312628617,1706118639417,-498.54555384,0.0002496,5]
[312628619,1706118639426,-764.21692563,0.00025,2]
[312628620,1706118639435,-2293.59373872,0.00025,2]
[312628622,1706118639445,-7384.14849766,0.00025,2]
[312628624,1706118639454,-391.0,0.00026756,15]
[312628626,1706118639463,-290.32272867,0.00027,2]
[312628628,1706118639473,-855.527996,0.00027247,2]
[312628631,1706118639482,-155.0,0.00027397,2]
[312628633,1706118639491,-11234.57,0.00027397,3]
[312628634,1706118639500,-9362.14,0.00027397,3]
[312628636,1706118639509,-7801.79,0.00027397,3]
[312628639,1706118639519,-537.03951848,0.00028,2]
[312628641,1706118639528,-600.0,0.00028,2]
[312628643,1706118639537,-155.0,0.00028767,2]
[312628645,1706118639546,-154.60190487,0.00028999,2]
[312628648,1706118639557,-1942.40988753,0.00029,2]
[312628651,1706118639566,-199.2894744,0.00029315,2]
[312628654,1706118639576,-200.0,0.00029431,15]
[312628657,1706118639585,-348.0,0.00029431,15]
[312628660,1706118639594,-1468.00454349,0.00029847,2]
[312628662,1706118639603,-185.45037393,0.00029889,2]
[312628665,1706118639612,-307.60539626,0.00029999,2]
[312628668,1706118639621,-568.15921395,0.00029999,2]
[312628670,1706118639630,-1508.07314852,0.00029999,2]
[312628672,1706118639639,-154.86062544,0.0003,4]
[312628674,1706118639648,-687.02930473,0.0003,4]
[312628676,1706118639657,-139234.85869816,0.0003,4]
[312628678,1706118639666,-195.42586369,0.0003,2]
[312628680,1706118639675,-2371.98806335,0.0003,2]
[312628682,1706118639684,-1200.0,0.0003,4]
[312628692,1706118639763,-202.91048459,0.0003,2]
[312628695,1706118639788,-306.24847781,0.0003,2]
[312628697,1706118639797,-933.59135,0.0003,2]
[312628699,1706118639806,-396.0,0.0003,2]
[312628701,1706118639816,-483.41551459,0.00030037,2]
[312628703,1706118639826,-398.5789488,0.00030137,2]
[312628704,1706118639835,-398.5789488,0.00030137,2]
[312628705,1706118639844,-199.2894744,0.00030137,2]
[312628707,1706118639853,-199.2894744,0.00030137,2]
[312628709,1706118639863,-195.6207648,0.00030137,2]
[312628711,1706118639872,-179.374898,0.00030137,2]
[312628713,1706118639882,-158.280104,0.00030137,2]
[312628715,1706118639891,-168.366665,0.00030137,2]
[312628717,1706118639900,-155.0,0.00030137,2]
[312628719,1706118639909,-1000.0,0.00030898,14]
[312628721,1706118639918,-1000.0,0.00030898,14]
[312628723,1706118639927,-438.17345605,0.00030898,14]
[312628725,1706118639936,-179.374898,0.0003092,2]
[312628727,1706118639945,-161.3011265,0.00031,4]
[312628729,1706118639954,-370.04024356,0.00031,6]
[312628730,1706118639963,-154.86062544,0.00031,4]
[312628731,1706118639972,-158.280104,0.00031233,2]
[312628732,1706118639982,-155.0,0.00031507,2]
[312628733,1706118639991,-179.374898,0.00031703,2]
[312628734,1706118640000,-168.366665,0.00031703,2]
[312628735,1706118640009,-234.15877039,0.00032,4]
[312628736,1706118640018,-158.280104,0.00032329,2]
[312628737,1706118640027,-200.0,0.00032374,15]
[312628738,1706118640037,-212.0,0.00032374,15]
[312628739,1706118640046,-483.41551457,0.00032451,2]
[312628740,1706118640055,-179.374898,0.00032485,2]
[312628741,1706118640064,-1061.29286357,0.00032656,2]
[312628742,1706118640073,-6226.1559501,0.00032877,2]
[312628743,1706118640084,-179.374898,0.00033268,2]
[312628744,1706118640093,-168.366665,0.00033268,2]
[312628745,1706118640104,-158.280104,0.00033425,2]
[312628746,1706118640113,-179.374898,0.00034051,2]
[312628747,1706118640122,-181.390515,0.00034247,2]
[312628748,1706118640134,-181.390515,0.00034247,120]
[312628749,1706118640143,-158.280104,0.00034521,2]
[312628750,1706118640152,-179.374898,0.00034834,2]
[312628751,1706118640161,-168.366665,0.00034834,2]
[312628753,1706118640170,-483.41551457,0.00034866,2]
[312628755,1706118640179,-1600.0,0.0003499,6]
[312628757,1706118640189,-333.39122483,0.00035,4]
[312628760,1706118640199,-450.74064521,0.00035,14]
[312628762,1706118640208,-592.25305977,0.00035,2]
[312628764,1706118640217,-224.59905288,0.00035,4]
[312628766,1706118640226,-2090.58521615,0.00035,4]
[312628768,1706118640236,-254.02058176,0.00035,4]
[312628770,1706118640244,-341.99340537,0.00035499,10]
[312628772,1706118640254,-500.0,0.00035499,10]
[312628774,1706118640263,-156.40029863,0.00035499,10]
[312628776,1706118640272,-25711.85165783,0.000355,14]
[312628778,1706118640282,-179.374898,0.00035616,2]
[312628780,1706118640291,-158.280104,0.00035616,2]
[312628782,1706118640301,-237.8331174,0.00035616,120]
[312628784,1706118640310,-154.98450155,0.00035816,4]
[312628786,1706118640319,-977.99536434,0.00035817,2]
[312628788,1706118640327,-154.86062544,0.00036,4]
[312628790,1706118640337,-1588.15392137,0.00036068,2]
[312628791,1706118640346,-179.374898,0.00036399,2]
[312628794,1706118640355,-168.366665,0.00036399,2]
[312628796,1706118640365,-158.280104,0.00036712,2]
[312628798,1706118640374,-5000.0,0.00036735,7]
[312628799,1706118640383,-19701.14547142,0.00036999,4]
[312628800,1706118640392,-150.0,0.00037,30]
[312628801,1706118640401,-12260.48652932,0.0003715,5]
[312628802,1706118640410,-6300.000023,0.0003715,2]
[312628803,1706118640419,-6300.000023,0.0003715,2]
[312628804,1706118640428,-179.374898,0.00037182,2]
[312628805,1706118640437,-150.0,0.000372,30]
[312628806,1706118640446,-483.41551457,0.0003728,2]
[312628807,1706118640455,-150.0,0.000374,30]
[312628808,1706118640464,-150.0,0.000376,30]
[312628809,1706118640473,-150.35541223,0.000378,30]
[312628810,1706118640482,-500.128317,0.000378,7]
[312628811,1706118640491,-158.280104,0.00037808,2]
[312628812,1706118640500,-179.374898,0.00037965,2]
[312628813,1706118640509,-168.366665,0.00037965,2]
[312628814,1706118640518,-400.0,0.00038356,2]
[312628815,1706118640529,-294.88989743,0.00038599,4]
[312628816,1706118640538,-200.0,0.000387,4]
[312628817,1706118640547,-179.374898,0.00038747,2]
[312628818,1706118640557,-500.0,0.000388,7]
[312628819,1706118640567,-276000.0,0.00038899,2]
[312628820,1706118640576,-667.047224,0.00038899,2]
[312628821,1706118640586,-667.047224,0.00038899,2]
[312628822,1706118640595,-6300.000023,0.00038899,2]
[312628823,1706118640604,-6300.000023,0.00038899,2]
[312628824,1706118640614,-158.280104,0.00038904,2]
[312628825,1706118640623,-166.56941425,0.00038999,2]
[312628826,1706118640632,-3000.0,0.00039,7]
[312628827,1706118640641,-3485.76836938,0.00039,4]
[312628828,1706118640651,-221.44676153,0.00039059,4]
[312628829,1706118640660,-6155.07902735,0.00039396,4]
[312628830,1706118640779,-15531.06695015,0.00039396,4]
[312628831,1706118640788,-179.374898,0.0003953,2]
[312628833,1706118640797,-168.366665,0.0003953,2]
[312628835,1706118640806,-154.98450155,0.00039595,4]
[312628837,1706118640816,-483.41551457,0.00039694,2]
[312628839,1706118640826,-225.56099349,0.00039794,4]
[312628841,1706118640835,-252.96015669,0.00039794,4]
[312628843,1706118640844,-678.6288756,0.00039794,4]
[312628845,1706118640854,-156.33187013,0.00039794,4]
[312628847,1706118640862,-521.36513523,0.00039794,4]
[312628849,1706118640871,-10537.96841435,0.00039794,4]
[312628851,1706118640881,-154.98450155,0.00039794,4]
[312628853,1706118640890,-850.30063575,0.00039794,4]
[312628855,1706118640899,-425.98515357,0.00039794,2]
[312628857,1706118640908,-154.98450155,0.00039794,4]
[312628859,1706118640918,-667.24083957,0.00039794,4]
[312628861,1706118640927,-903.63325516,0.00039795,4]
[312628863,1706118640937,-178.54245641,0.00039795,4]
[312628866,1706118640946,-154.98450155,0.00039795,4]
[312628867,1706118640955,-154.98450155,0.00039796,4]
[312628870,1706118640965,-1579.39395429,0.00039796,4]
[312628871,1706118640974,-154.98450155,0.00039796,4]
[312628874,1706118640984,-159.10235282,0.00039796,4]
[312628876,1706118640993,-1253.41868812,0.00039796,4]
[312628878,1706118641002,-687.96014716,0.00039796,4]
[312628880,1706118641012,-211.53795191,0.00039796,4]
[312628882,1706118641023,-272.55691777,0.00039796,4]
[312628884,1706118641032,-160.46088693,0.00039796,4]
[312628886,1706118641041,-213.43652609,0.00039796,4]
[312628888,1706118641050,-746.00771525,0.00039796,4]
[312628890,1706118641059,-2706.76932127,0.00039796,120]
[312628892,1706118641068,-1266.7890629,0.00039796,4]
[312628894,1706118641078,-1993.49479484,0.00039797,4]
[312628896,1706118641087,-154.98450155,0.00039797,4]
[312628898,1706118641098,-167.00483785,0.00039797,4]
[312628900,1706118641107,-36965.59360405,0.00039798,4]
[312628902,1706118641116,-262.59748,0.00039798,2]
[312628904,1706118641126,-262.59748,0.00039798,2]
[312628906,1706118641135,-667.047224,0.00039798,2]
[312628907,1706118641144,-667.047224,0.00039798,2]
[312628909,1706118641153,-6300.000023,0.00039798,2]
[312628911,1706118641162,-6300.000023,0.00039798,2]
[312628913,1706118641171,-1242.46964965,0.00039799,4]
[312628915,1706118641180,-196612.11355075,0.000398,10]
[312628917,1706118641190,-151.0,0.000398,2]
[312628919,1706118641199,-241.615986,0.000398,2]
[312628921,1706118641209,-151.0,0.000398,2]
[312628923,1706118641218,-151.0,0.000398,2]
[312628925,1706118641227,-500.0,0.000398,7]
[312628927,1706118641236,-262.59748,0.000398,2]
[312628929,1706118641245,-262.59748,0.000398,2]
[312628931,1706118641255,-667.047224,0.000398,2]
[312628933,1706118641264,-667.047224,0.000398,2]
[312628935,1706118641273,-6300.000023,0.000398,2]
[312628937,1706118641282,-6300.000023,0.000398,2]
[312628939,1706118641291,-500.0,0.0003981,5]
[312628941,1706118641300,-209887.00083843,0.0003988,2]
[312628950,1706118641480,-6567.66,0.0003988,2]
[312628951,1706118641580,-1322.62828524,0.0003988,2]
[312628953,1706118641610,-341.105,0.0003988,2]
[312629471,1706118646283,-0.84244034,0.0003714,3]
[312629552,1706118831248,154.86062544,0.00021999,4]
[312629579,1706119353488,-452.88221546,0.00019358,2]
[312629580,1706119353508,-243.19997644,0.00019358,2]
[312629581,1706119353529,-175.26340057,0.00019358,2]
[312629582,1706119353549,-154.86062544,0.00019358,2]
[312629583,1706119353569,-211.59032414,0.00019359,2]
[312629584,1706119353589,-154.86062544,0.0001936,2]
[312629585,1706119353609,-1579.8258689,0.00019361,2]
[312629586,1706119353629,-903.88612378,0.00019362,2]
[312629587,1706119353648,-143.63083983,0.00019362,2]
[312629588,1706119422577,-2708.24155436,0.00019344,2]
[312629589,1706119422599,-1741.4785695,0.00019344,2]
[312629590,1706119422620,-938.03984623,0.00019344,2]
[312629591,1706119422641,-154.86062544,0.00019345,2]
[312629592,1706119422661,-616.92156387,0.00019345,2]
[312629593,1706119422682,-6501.49,0.00019346,3]
[312629594,1706119422703,-5417.91,0.00019346,3]
[312629595,1706119422725,-1267.12305076,0.00019353,2]
[312629596,1706119422746,-154.86062544,0.00019354,2]
[312629597,1706119422767,-154.86062544,0.00019354,2]
[312629598,1706119422787,-21690.99033113,0.00019354,2]
[312629599,1706119422897,-2104.07287401,0.00019354,2]
[312629600,1706119422919,-470.80732048,0.00019354,2]
[312629601,1706119422944,-323.68259118,0.00019355,2]
[312629602,1706119422965,-8764.16069463,0.00019355,2]
[312629603,1706119422984,-213.48757656,0.00019356,2]
[312629604,1706119423004,-688.13841462,0.00019356,2]
[312629605,1706119423025,-8268.87373635,0.00019356,2]
[312629606,1706119458589,1323.0,0.0001835,2]
[312629607,1706119458621,23577.0,0.0001835,2]
[312629608,1706119462524,3000.0,0.0001835,2]
[312629609,1706119597642,-1026.52542137,0.00019151,2]
[312629610,1706119597666,-452.88221546,0.00019152,2]
[312629611,1706119597687,-175.26340057,0.00019152,2]
[312629612,1706119597709,-167.05007612,0.00019152,2]
[312629613,1706119597731,-3746.91160772,0.00019153,2]
[312629614,1706119597757,-154.86062544,0.00019153,2]
[312629615,1706119597779,-938.03984623,0.00019153,2]
[312629616,1706119597802,-243.19997644,0.00019153,2]
[312629617,1706119597826,-294.97608218,0.00019154,2]
[312629618,1706119597849,-644.5849569,0.00019154,2]
[312629619,1706119597872,-1741.4785695,0.00019155,2]
[312629620,1706119597895,-20906.59632435,0.00019155,2]
[312629621,1706119597919,-81222.81038163,0.00019159,2]
[312629622,1706119597942,-15526.22259652,0.0001916,2]
[312629623,1706119597969,-2074.57916651,0.00019354,2]
[312629624,1706119597991,-1377.16877969,0.00019354,2]
[312629625,1706119598014,-204.83157954,0.00019354,2]
[312629626,1706119598037,-687.7818797,0.00019355,2]
[312629627,1706119598058,-8715.45979367,0.00019355,2]
[312629628,1706119598083,-154.98450155,0.00019355,2]
[312629629,1706119598105,-322.66867598,0.00019355,2]
[312629630,1706119598130,-1266.45507504,0.00019355,2]
[312629631,1706119598152,-4815.22334348,0.00019355,2]
[312629632,1706119598177,-470.27656304,0.00019355,2]
[312629633,1706119598199,-335.5636504,0.00019363,2]
[312629634,1706119598221,-908.97242246,0.00019998,2]
[312629635,1706119598243,-323.23544643,0.0002,2]
[312629636,1706119656465,2009.41481604,0.00016,5]
[312629637,1706119662898,200.0,0.00022218,7]
[312629685,1706119832267,-193.76868591,0.000201,2]
[312629687,1706119832277,-211.59032414,0.00020197,2]
[312629689,1706119832286,-4074.32826352,0.00020198,2]
[312629692,1706119832297,-2806.3273851,0.00020198,2]
[312629694,1706119832309,-3746.15825221,0.00020198,2]
[312629696,1706119832320,-8282.41011909,0.00020198,2]
[312629698,1706119832329,-14209.34250934,0.00020199,2]
[312629700,1706119832338,-260.95376915,0.000202,2]
[312629702,1706119832348,-526.86671642,0.000202,2]
[312629704,1706119832357,-155.10837766,0.000202,2]
[312629706,1706119832366,-903.38038654,0.000202,2]
[312629708,1706119832375,-1578.96203968,0.000202,2]
[312629710,1706119832384,-1198.3823456,0.000202,2]
[312629712,1706119832393,-154.86062544,0.000202,2]
[312629713,1706119832402,-154.86062544,0.000202,2]
[312629714,1706119832412,-282.96542572,0.00020201,2]
[312629715,1706119832422,-181.6481163,0.00021918,2]
[312629716,1706119832431,-155.18853269,0.00022,2]
[312629717,1706119832440,-426.10577832,0.00022,2]
[312629718,1706119832449,-1783.90345967,0.00023393,2]
[312629719,1706119832459,-5390.96285158,0.00023567,2]
[312629720,1706119832469,-280.0,0.0002444,7]
[312629721,1706119832478,-616.57856793,0.00024999,2]
[312629722,1706119832490,-213.38547562,0.00024999,2]
[312629723,1706119832499,-1175.59889736,0.00024999,2]
[312629725,1706119832508,-4731.9640663,0.00025,2]
[312629727,1706119832517,-243.19997644,0.00026814,2]
[312629728,1706119832527,-938.03984623,0.00026815,2]
[312629730,1706119832536,-175.26340057,0.00026816,2]
[312629731,1706119832545,-154.86062544,0.00026817,4]
[312629732,1706119832554,-700.0,0.00028071,2]
[312629733,1706119832565,-210.0,0.00028071,2]
[312629734,1706119832575,-154.98450155,0.00029648,2]
[312629735,1706119832585,-2955.79,0.00029777,3]
[312629737,1706119832594,-5102.59,0.00029787,3]
[312629738,1706119832603,-2070.24926504,0.00029795,2]
[312629740,1706119832612,-1638.3938794,0.00029795,2]
[312629742,1706119832622,-294.80371268,0.00029795,2]
[312629743,1706119832631,-726.25836231,0.00029795,2]
[312629744,1706119832640,-644.40876473,0.00029795,2]
[312629745,1706119832649,-261.13863683,0.00029795,2]
[312629746,1706119832658,-154.92253873,0.00029795,2]
[312629747,1706119832667,-3746.05559912,0.00029796,2]
[312629748,1706119832677,-166.95959958,0.00029796,2]
[312629749,1706119832686,-277.65376406,0.00029796,2]
[312629750,1706119832696,-225.56099349,0.00029797,2]
[312629751,1706119832786,-156.33187013,0.00029797,2]
[312629752,1706119832795,-678.6288756,0.00029797,2]
[312629753,1706119832804,-44952.43554504,0.00029797,2]
[312629761,1706119838296,-4446.22071116,0.00023567,2]
[312629762,1706119838315,-262.3827165,0.00023567,2]
[312629763,1706119838326,-336.967,0.00023567,2]
[312629764,1706119838337,-419.11,0.00023567,2]
[312629765,1706119838356,-59390.55384904,0.00023567,2]
[312629766,1706119838365,-28978.75166306,0.00029797,2]
[312629767,1706119838375,-159.10235282,0.00029798,2]
[312629768,1706119838384,-154.98450155,0.00029798,2]
[312629769,1706119838393,-160.46088693,0.00029798,2]
[312629770,1706119838402,-178.54245641,0.00029798,2]
[312629771,1706119838412,-154.98450155,0.00029798,2]
[312629772,1706119838421,-1242.46964965,0.00029798,2]
[312629773,1706119838430,-272.55691777,0.00029798,2]
[312629774,1706119838439,-154.98450155,0.00029798,2]
[312629775,1706119838448,-154.98450155,0.00029798,2]
[312629776,1706119838457,-10537.96841435,0.00029798,2]
[312629778,1706119838468,-521.36513523,0.00029798,2]
[312629780,1706119838480,-850.30063575,0.00029798,2]
[312629782,1706119838493,-1253.41868812,0.00029798,2]
[312629784,1706119838502,-667.24083957,0.00029798,2]
[312629786,1706119838512,-154.98450155,0.00029799,2]